[Event "Titled Tuesday Blitz March 21 Early 2023"]
[White "Jones, Gawain C B"]
[Black "Jaskolka, Tomasz"]
[WhiteFideId "409561"]
[BlackFideId "1170791"]
[WhiteElo "2645"]
[BlackElo "2155"]
[Result "1-0"]
[Round "04"]
[TimeControl "180+2"]
[Date "2023.03.21"]
[WhiteClock "0:01:01"]
[BlackClock "0:00:10"]

1. e4 {[%clk 0:03:00]}  c5 {[%clk 0:03:00]} 2. Nc3 {[%clk 0:03:00]}  e6 {[%clk 0:02:59]} 3. Nf3 {[%clk 0:02:59]}  Nc6 {[%clk 0:02:58]} 4. Bb5 {[%clk 0:02:59]}  Nd4 {[%clk 0:02:55]} 5. O-O {[%clk 0:02:59]}  a6 {[%clk 0:02:54]} 6. Bd3 {[%clk 0:02:59]}  Nc6 {[%clk 0:02:54]} 7. Be2 {[%clk 0:02:59]}  Qc7 {[%clk 0:02:51]} 8. d4 {[%clk 0:02:58]}  cxd4 {[%clk 0:02:52]} 9. Nxd4 {[%clk 0:02:59]}  Nf6 {[%clk 0:02:50]} 10. Kh1 {[%clk 0:02:53]}  Be7 {[%clk 0:02:34]} 11. f4 {[%clk 0:02:48]}  d6 {[%clk 0:02:35]} 12. Nxc6 {[%clk 0:02:45]}  Qxc6 {[%clk 0:02:29]} 13. e5 {[%clk 0:02:37]}  Nd7 {[%clk 0:02:13]} 14. Bf3 {[%clk 0:02:34]}  Qc7 {[%clk 0:02:14]} 15. exd6 {[%clk 0:02:31]}  Bxd6 {[%clk 0:02:15]} 16. f5 {[%clk 0:02:31]}  Ne5 {[%clk 0:01:59]} 17. fxe6 {[%clk 0:02:29]}  Bxe6 {[%clk 0:01:53]} 18. Bxb7 {[%clk 0:02:24]}  Rd8 {[%clk 0:01:53]} 19. Bxa6 {[%clk 0:02:08]}  O-O {[%clk 0:01:45]} 20. Bf4 {[%clk 0:02:08]}  Nc4 {[%clk 0:01:29]} 21. Nb5 {[%clk 0:01:54]}  Bxf4 {[%clk 0:01:16]} 22. Nxc7 {[%clk 0:01:53]}  Rxd1 {[%clk 0:01:16]} 23. Nxe6 {[%clk 0:01:51]}  Rxa1 {[%clk 0:01:01]} 24. Rxa1 {[%clk 0:01:50]}  fxe6 {[%clk 0:00:50]} 25. Bxc4 {[%clk 0:01:50]}  Rf6 {[%clk 0:00:38]} 26. a4 {[%clk 0:01:44]}  Be5 {[%clk 0:00:37]} 27. c3 {[%clk 0:01:36]}  Kf7 {[%clk 0:00:33]} 28. a5 {[%clk 0:01:35]}  Bb8 {[%clk 0:00:30]} 29. Rf1 {[%clk 0:01:34]}  Rxf1+ {[%clk 0:00:29]} 30. Bxf1 {[%clk 0:01:34]}  Ke7 {[%clk 0:00:30]} 31. Bd3 {[%clk 0:01:31]}  h6 {[%clk 0:00:30]} 32. g3 {[%clk 0:01:26]}  Ba7 {[%clk 0:00:26]} 33. Kg2 {[%clk 0:01:26]}  Be3 {[%clk 0:00:26]} 34. Kf3 {[%clk 0:01:24]}  Bg1 {[%clk 0:00:27]} 35. b4 {[%clk 0:01:19]}  Kd6 {[%clk 0:00:26]} 36. c4 {[%clk 0:01:14]}  Bd4 {[%clk 0:00:21]} 37. c5+ {[%clk 0:01:05]}  Kc6 {[%clk 0:00:20]} 38. a6 {[%clk 0:01:05]}  Kc7 {[%clk 0:00:15]} 39. Bc4 {[%clk 0:01:02]}  e5 {[%clk 0:00:14]} 40. Ke4 {[%clk 0:01:02]}  Kb8 {[%clk 0:00:13]} 41. Kd5 {[%clk 0:01:01]}  Ka7 {[%clk 0:00:14]} 42. Kc6 {[%clk 0:01:01]}  g5 {[%clk 0:00:14]} 43. b5 {[%clk 0:01:01]}  h5 {[%clk 0:00:13]} 44. b6+ {[%clk 0:01:01]}  Ka8 {[%clk 0:00:14]} 45. a7 {[%clk 0:01:01]}  e4 {[%clk 0:00:10]} 46. Bd5 {[%clk 0:01:01]}  e3 {[%clk 0:00:10]} 47. Kb5# {[%clk 0:01:01]} 1-0


[Site "https://www.chess.com"]

[Event "Titled Tuesday Blitz March 21 Early 2023"]
[White "Gadimbayli, Abdulla"]
[Black "Golubev, Mikhail"]
[WhiteFideId "13404938"]
[BlackFideId "14100983"]
[WhiteElo "2390"]
[BlackElo "2374"]
[Result "1-0"]
[Round "04"]
[TimeControl "180+2"]
[Date "2023.03.21"]
[WhiteClock "0:00:30"]
[BlackClock "0:00:01"]

1. e4 {[%clk 0:03:00]}  c5 {[%clk 0:02:59]} 2. Nf3 {[%clk 0:03:01]}  d6 {[%clk 0:02:59]} 3. d4 {[%clk 0:03:02]}  cxd4 {[%clk 0:03:00]} 4. Nxd4 {[%clk 0:03:02]}  Nf6 {[%clk 0:03:00]} 5. Nc3 {[%clk 0:03:03]}  g6 {[%clk 0:03:00]} 6. f3 {[%clk 0:03:03]}  Bg7 {[%clk 0:03:00]} 7. Be3 {[%clk 0:03:04]}  a6 {[%clk 0:02:54]} 8. Qd2 {[%clk 0:03:02]}  h5 {[%clk 0:02:54]} 9. O-O-O {[%clk 0:03:01]}  Nbd7 {[%clk 0:02:54]} 10. Nb3 {[%clk 0:03:00]}  Qc7 {[%clk 0:02:46]} 11. Be2 {[%clk 0:02:59]}  b5 {[%clk 0:02:36]} 12. a3 {[%clk 0:02:53]}  Bb7 {[%clk 0:02:34]} 13. Bd4 {[%clk 0:02:42]}  Rc8 {[%clk 0:02:28]} 14. Kb1 {[%clk 0:02:42]}  Nc5 {[%clk 0:01:57]} 15. Nxc5 {[%clk 0:00:47]}  dxc5 {[%clk 0:01:58]} 16. Be3 {[%clk 0:00:48]}  b4 {[%clk 0:01:52]} 17. axb4 {[%clk 0:00:46]}  cxb4 {[%clk 0:01:49]} 18. Na4 {[%clk 0:00:47]}  O-O {[%clk 0:01:32]} 19. Nb6 {[%clk 0:00:47]}  b3 {[%clk 0:01:13]} 20. Nxc8 {[%clk 0:00:44]}  Rxc8 {[%clk 0:01:13]} 21. cxb3 {[%clk 0:00:43]}  Nxe4 {[%clk 0:00:32]} 22. fxe4 {[%clk 0:00:40]}  Bxe4+ {[%clk 0:00:33]} 23. Bd3 {[%clk 0:00:40]}  Rd8 {[%clk 0:00:29]} 24. Qc2 {[%clk 0:00:38]}  Rxd3 {[%clk 0:00:04]} 25. Rxd3 {[%clk 0:00:37]}  Qe5 {[%clk 0:00:02]} 26. Rhd1 {[%clk 0:00:31]}  Kh7 {[%clk 0:00:01]} 27. Bd4 {[%clk 0:00:30]} 1-0


[Site "https://www.chess.com"]

[Event "Titled Tuesday Blitz March 21 Early 2023"]
[White "Vaishali, Rameshbabu"]
[Black "Reprintsev, Alexander"]
[WhiteFideId "5091756"]
[BlackFideId "14100541"]
[WhiteElo "2410"]
[BlackElo "2229"]
[Result "1-0"]
[Round "04"]
[TimeControl "180+2"]
[Date "2023.03.21"]
[WhiteClock "0:00:03"]
[BlackClock "0:00:20"]

1. d4 {[%clk 0:02:50]}  d5 {[%clk 0:02:59]} 2. Nf3 {[%clk 0:02:49]}  Nc6 {[%clk 0:02:57]} 3. g3 {[%clk 0:02:47]}  Bf5 {[%clk 0:02:56]} 4. Bg2 {[%clk 0:02:48]}  Nb4 {[%clk 0:02:56]} 5. c3 {[%clk 0:02:41]}  Nc6 {[%clk 0:02:55]} 6. O-O {[%clk 0:02:38]}  e6 {[%clk 0:02:55]} 7. b4 {[%clk 0:02:38]}  Nf6 {[%clk 0:02:54]} 8. Qa4 {[%clk 0:02:35]}  Bd6 {[%clk 0:02:53]} 9. b5 {[%clk 0:02:21]}  Ne7 {[%clk 0:02:50]} 10. Ba3 {[%clk 0:02:21]}  O-O {[%clk 0:02:50]} 11. Nbd2 {[%clk 0:02:19]}  a6 {[%clk 0:02:50]} 12. Bxd6 {[%clk 0:02:14]}  Qxd6 {[%clk 0:02:48]} 13. Qb3 {[%clk 0:02:10]}  axb5 {[%clk 0:02:47]} 14. Qxb5 {[%clk 0:02:11]}  c6 {[%clk 0:02:46]} 15. Qb6 {[%clk 0:02:06]}  Nd7 {[%clk 0:02:42]} 16. Qb2 {[%clk 0:02:01]}  b5 {[%clk 0:02:42]} 17. Nh4 {[%clk 0:01:56]}  Qa3 {[%clk 0:02:41]} 18. Qc1 {[%clk 0:01:52]}  Qxc1 {[%clk 0:02:39]} 19. Rfxc1 {[%clk 0:01:53]}  Ra3 {[%clk 0:02:38]} 20. Nxf5 {[%clk 0:01:49]}  Nxf5 {[%clk 0:02:38]} 21. e4 {[%clk 0:01:50]}  Nd6 {[%clk 0:02:38]} 22. exd5 {[%clk 0:01:49]}  exd5 {[%clk 0:02:37]} 23. Rc2 {[%clk 0:01:24]}  Rfa8 {[%clk 0:02:34]} 24. Bf1 {[%clk 0:01:19]}  Nb6 {[%clk 0:02:34]} 25. Bd3 {[%clk 0:01:16]}  g6 {[%clk 0:02:32]} 26. Kg2 {[%clk 0:01:15]}  f6 {[%clk 0:02:31]} 27. h4 {[%clk 0:01:14]}  Kf7 {[%clk 0:02:31]} 28. Kf3 {[%clk 0:01:09]}  h5 {[%clk 0:02:28]} 29. Kg2 {[%clk 0:01:09]}  R8a4 {[%clk 0:02:26]} 30. Be2 {[%clk 0:01:06]}  Nbc4 {[%clk 0:02:22]} 31. Nb1 {[%clk 0:01:02]}  Ne4 {[%clk 0:02:16]} 32. Bxc4 {[%clk 0:00:44]}  dxc4 {[%clk 0:02:12]} 33. f3 {[%clk 0:00:43]}  Nd6 {[%clk 0:02:09]} 34. Nxa3 {[%clk 0:00:41]}  Rxa3 {[%clk 0:02:09]} 35. Re1 {[%clk 0:00:41]}  Nf5 {[%clk 0:02:03]} 36. Kh3 {[%clk 0:00:33]}  Ne7 {[%clk 0:02:02]} 37. Rce2 {[%clk 0:00:18]}  Nd5 {[%clk 0:02:02]} 38. Re6 {[%clk 0:00:18]}  Rxc3 {[%clk 0:01:54]} 39. Rxc6 {[%clk 0:00:18]}  Rxf3 {[%clk 0:01:54]} 40. Rc5 {[%clk 0:00:17]}  Nf4+ {[%clk 0:01:40]} 41. Kh2 {[%clk 0:00:18]}  Nd3 {[%clk 0:01:38]} 42. Rc7+ {[%clk 0:00:17]}  Kf8 {[%clk 0:01:38]} 43. Rc8+ {[%clk 0:00:17]}  Kf7 {[%clk 0:01:38]} 44. Rc7+ {[%clk 0:00:17]}  Kf8 {[%clk 0:01:38]} 45. Ree7 {[%clk 0:00:18]}  Rf2+ {[%clk 0:01:20]} 46. Kg1 {[%clk 0:00:18]}  Rxa2 {[%clk 0:01:20]} 47. Red7 {[%clk 0:00:12]}  Ra8 {[%clk 0:01:19]} 48. Rh7 {[%clk 0:00:11]}  Kg8 {[%clk 0:01:19]} 49. Rcg7+ {[%clk 0:00:10]}  Kf8 {[%clk 0:01:19]} 50. Rxg6 {[%clk 0:00:07]}  Ra1+ {[%clk 0:01:18]} 51. Kh2 {[%clk 0:00:06]}  c3 {[%clk 0:01:19]} 52. Rxf6+ {[%clk 0:00:04]}  Kg8 {[%clk 0:01:18]} 53. Rc7 {[%clk 0:00:03]}  b4 {[%clk 0:01:18]} 54. Rd6 {[%clk 0:00:03]}  Ra8 {[%clk 0:01:17]} 55. Rb6 {[%clk 0:00:03]}  Re8 {[%clk 0:01:10]} 56. g4 {[%clk 0:00:03]}  hxg4 {[%clk 0:01:10]} 57. h5 {[%clk 0:00:04]}  Nf4 {[%clk 0:01:07]} 58. h6 {[%clk 0:00:04]}  Nd5 {[%clk 0:01:07]} 59. Rg7+ {[%clk 0:00:04]}  Kh8 {[%clk 0:01:07]} 60. Rbb7 {[%clk 0:00:04]}  Nf6 {[%clk 0:01:07]} 61. Rgf7 {[%clk 0:00:04]}  c2 {[%clk 0:01:05]} 62. Rfc7 {[%clk 0:00:03]}  Re2+ {[%clk 0:00:52]} 63. Kg3 {[%clk 0:00:04]}  Re3+ {[%clk 0:00:49]} 64. Kh4 {[%clk 0:00:04]}  b3 {[%clk 0:00:48]} 65. Kg5 {[%clk 0:00:03]}  Rf3 {[%clk 0:00:40]} 66. Rc8+ {[%clk 0:00:03]}  Ng8 {[%clk 0:00:40]} 67. h7 {[%clk 0:00:03]}  Rf8 {[%clk 0:00:33]} 68. hxg8=Q+ {[%clk 0:00:02]}  Kxg8 {[%clk 0:00:32]} 69. Rcc7 {[%clk 0:00:01]}  Rd8 {[%clk 0:00:28]} 70. d5 {[%clk 0:00:01]}  Rxd5+ {[%clk 0:00:28]} 71. Kxg4 {[%clk 0:00:01]}  Rd8 {[%clk 0:00:27]} 72. Rxb3 {[%clk 0:00:02]}  Kf8 {[%clk 0:00:20]} 73. Rbc3 {[%clk 0:00:02]}  Rd4+ {[%clk 0:00:20]} 74. Kf5 {[%clk 0:00:03]}  Rd5+ {[%clk 0:00:20]} 75. Ke6 {[%clk 0:00:03]}  Rd8 {[%clk 0:00:20]} 76. Rc8 {[%clk 0:00:03]} 1-0


[Site "https://www.chess.com"]

[Event "Titled Tuesday Blitz March 21 Early 2023"]
[White "Padmini, Rout"]
[Black "Starozhilov, Leonid"]
[WhiteFideId "5029295"]
[BlackFideId "14106752"]
[WhiteElo "2314"]
[BlackElo "2402"]
[Result "0-1"]
[Round "04"]
[TimeControl "180+2"]
[Date "2023.03.21"]
[WhiteClock "0:00:05"]
[BlackClock "0:00:06"]

1. e4 {[%clk 0:03:00]}  g6 {[%clk 0:02:53]} 2. d4 {[%clk 0:02:56]}  Bg7 {[%clk 0:02:53]} 3. Nc3 {[%clk 0:02:55]}  d6 {[%clk 0:02:53]} 4. Be3 {[%clk 0:02:55]}  Nf6 {[%clk 0:02:51]} 5. f3 {[%clk 0:02:53]}  c6 {[%clk 0:02:52]} 6. Qd2 {[%clk 0:02:54]}  b5 {[%clk 0:02:51]} 7. g4 {[%clk 0:02:49]}  h5 {[%clk 0:02:50]} 8. g5 {[%clk 0:02:49]}  Nfd7 {[%clk 0:02:50]} 9. h4 {[%clk 0:02:49]}  Nb6 {[%clk 0:02:50]} 10. a4 {[%clk 0:02:47]}  b4 {[%clk 0:02:50]} 11. Nd1 {[%clk 0:02:47]}  a5 {[%clk 0:02:49]} 12. Nf2 {[%clk 0:02:47]}  N8d7 {[%clk 0:02:47]} 13. f4 {[%clk 0:02:38]}  c5 {[%clk 0:02:24]} 14. Nf3 {[%clk 0:02:33]}  O-O {[%clk 0:02:14]} 15. c3 {[%clk 0:02:05]}  Ba6 {[%clk 0:02:07]} 16. Bxa6 {[%clk 0:02:00]}  Rxa6 {[%clk 0:02:08]} 17. Qd3 {[%clk 0:01:48]}  Ra8 {[%clk 0:02:01]} 18. f5 {[%clk 0:01:35]}  bxc3 {[%clk 0:01:53]} 19. bxc3 {[%clk 0:01:32]}  cxd4 {[%clk 0:01:53]} 20. cxd4 {[%clk 0:01:30]}  Nc5 {[%clk 0:01:04]} 21. dxc5 {[%clk 0:01:24]}  Bxa1 {[%clk 0:01:03]} 22. cxb6 {[%clk 0:01:24]}  Qd7 {[%clk 0:00:57]} 23. O-O {[%clk 0:01:15]}  Bg7 {[%clk 0:00:41]} 24. Nh3 {[%clk 0:01:12]}  Rac8 {[%clk 0:00:32]} 25. Nf4 {[%clk 0:01:07]}  Rc3 {[%clk 0:00:31]} 26. Qd2 {[%clk 0:01:04]}  Qxa4 {[%clk 0:00:29]} 27. Nd5 {[%clk 0:00:45]}  Rc2 {[%clk 0:00:12]} 28. Qd3 {[%clk 0:00:43]}  e6 {[%clk 0:00:06]} 29. Ne7+ {[%clk 0:00:42]}  Kh7 {[%clk 0:00:06]} 30. f6 {[%clk 0:00:42]}  Bh8 {[%clk 0:00:06]} 31. Nd4 {[%clk 0:00:17]}  Rb2 {[%clk 0:00:06]} 32. Ndc6 {[%clk 0:00:15]}  Qa2 {[%clk 0:00:06]} 33. Rf2 {[%clk 0:00:15]}  Rb1+ {[%clk 0:00:05]} 34. Kg2 {[%clk 0:00:15]}  Qa1 {[%clk 0:00:05]} 35. Rc2 {[%clk 0:00:14]}  Rh1 {[%clk 0:00:03]} 36. b7 {[%clk 0:00:13]}  Rxh4 {[%clk 0:00:03]} 37. b8=Q {[%clk 0:00:13]}  Qh1+ {[%clk 0:00:03]} 38. Kf2 {[%clk 0:00:13]}  Rh2+ {[%clk 0:00:04]} 39. Kg3 {[%clk 0:00:13]}  Rh3+ {[%clk 0:00:04]} 40. Kf2 {[%clk 0:00:13]}  Qf3+ {[%clk 0:00:04]} 41. Ke1 {[%clk 0:00:13]}  Rh1+ {[%clk 0:00:05]} 42. Kd2 {[%clk 0:00:09]}  Rd1+ {[%clk 0:00:05]} 43. Kc3 {[%clk 0:00:10]}  Rxd3+ {[%clk 0:00:06]} 44. Kxd3 {[%clk 0:00:11]}  Rxb8 {[%clk 0:00:05]} 45. Nxb8 {[%clk 0:00:12]}  Qd1+ {[%clk 0:00:04]} 46. Kc3 {[%clk 0:00:11]}  Qa1+ {[%clk 0:00:04]} 47. Kd3 {[%clk 0:00:11]}  Qd1+ {[%clk 0:00:04]} 48. Kc3 {[%clk 0:00:10]}  h4 {[%clk 0:00:04]} 49. Nd7 {[%clk 0:00:09]}  Qe1+ {[%clk 0:00:04]} 50. Kd3 {[%clk 0:00:09]}  Qd1+ {[%clk 0:00:04]} 51. Kc3 {[%clk 0:00:09]}  Qe1+ {[%clk 0:00:04]} 52. Kb3 {[%clk 0:00:10]}  Qb4+ {[%clk 0:00:04]} 53. Ka2 {[%clk 0:00:08]}  Qa4+ {[%clk 0:00:05]} 54. Kb1 {[%clk 0:00:08]}  Qxd7 {[%clk 0:00:06]} 55. Rh2 {[%clk 0:00:07]}  Qb5+ {[%clk 0:00:06]} 56. Kc1 {[%clk 0:00:05]}  Qc4+ {[%clk 0:00:06]} 57. Kd2 {[%clk 0:00:05]}  Qxe4 {[%clk 0:00:06]} 58. Bf2 {[%clk 0:00:05]}  Bxf6 {[%clk 0:00:05]} 59. Rxh4+ {[%clk 0:00:05]}  Qxh4 {[%clk 0:00:05]} 60. Bxh4 {[%clk 0:00:05]}  Bxe7 {[%clk 0:00:05]} 61. Kc3 {[%clk 0:00:05]}  Kg7 {[%clk 0:00:06]} 0-1


[Site "https://www.chess.com"]

[Event "Titled Tuesday Blitz March 21 Early 2023"]
[White "Papasimakopoulos, Alexandros"]
[Black "Bernat, David"]
[WhiteFideId "4244125"]
[BlackFideId "2099225"]
[WhiteElo "2359"]
[BlackElo "2465"]
[Result "1-0"]
[Round "04"]
[TimeControl "180+2"]
[Date "2023.03.21"]
[WhiteClock "0:01:24"]
[BlackClock "0:00:17"]

1. d4 {[%clk 0:03:00]}  d5 {[%clk 0:02:59]} 2. c4 {[%clk 0:03:00]}  e5 {[%clk 0:02:59]} 3. dxe5 {[%clk 0:03:00]}  d4 {[%clk 0:03:00]} 4. a3 {[%clk 0:02:58]}  Nc6 {[%clk 0:03:00]} 5. e3 {[%clk 0:02:59]}  Nge7 {[%clk 0:02:54]} 6. Nf3 {[%clk 0:02:58]}  Bg4 {[%clk 0:02:54]} 7. Be2 {[%clk 0:02:52]}  dxe3 {[%clk 0:02:52]} 8. Qxd8+ {[%clk 0:02:53]}  Rxd8 {[%clk 0:02:53]} 9. Bxe3 {[%clk 0:02:54]}  Ng6 {[%clk 0:02:51]} 10. Nc3 {[%clk 0:02:52]}  Be7 {[%clk 0:02:38]} 11. Nd5 {[%clk 0:02:49]}  O-O {[%clk 0:02:36]} 12. Nxc7 {[%clk 0:02:42]}  Bxf3 {[%clk 0:02:31]} 13. Bxf3 {[%clk 0:02:42]}  Ngxe5 {[%clk 0:02:32]} 14. Be2 {[%clk 0:02:40]}  Nd4 {[%clk 0:02:13]} 15. Rc1 {[%clk 0:02:30]}  b6 {[%clk 0:01:28]} 16. Nd5 {[%clk 0:02:23]}  Bc5 {[%clk 0:01:13]} 17. b4 {[%clk 0:01:55]}  Nxe2 {[%clk 0:01:12]} 18. Kxe2 {[%clk 0:01:56]}  Bxe3 {[%clk 0:01:03]} 19. Nxe3 {[%clk 0:01:53]}  Nd3 {[%clk 0:00:58]} 20. Rc3 {[%clk 0:01:49]}  Nf4+ {[%clk 0:00:57]} 21. Kf3 {[%clk 0:01:49]}  g5 {[%clk 0:00:56]} 22. h4 {[%clk 0:01:47]}  f6 {[%clk 0:00:53]} 23. c5 {[%clk 0:01:45]}  bxc5 {[%clk 0:00:50]} 24. bxc5 {[%clk 0:01:46]}  Nd3 {[%clk 0:00:48]} 25. c6 {[%clk 0:01:38]}  Ne5+ {[%clk 0:00:47]} 26. Kg3 {[%clk 0:01:36]}  Rc8 {[%clk 0:00:47]} 27. c7 {[%clk 0:01:35]}  f5 {[%clk 0:00:41]} 28. Nd5 {[%clk 0:01:31]}  f4+ {[%clk 0:00:40]} 29. Kh3 {[%clk 0:01:28]}  g4+ {[%clk 0:00:39]} 30. Kh2 {[%clk 0:01:29]}  Rf7 {[%clk 0:00:36]} 31. Re1 {[%clk 0:01:26]}  Ng6 {[%clk 0:00:25]} 32. h5 {[%clk 0:01:26]}  Nf8 {[%clk 0:00:20]} 33. Ne7+ {[%clk 0:01:23]}  Rxe7 {[%clk 0:00:17]} 34. Rxe7 {[%clk 0:01:24]} 1-0


[Site "https://www.chess.com"]

[Event "Titled Tuesday Blitz March 21 Early 2023"]
[White "Castellanos Gomez, Alejandro"]
[Black "Alvarez Calzadilla, Jose Avelino"]
[WhiteFideId "22284141"]
[BlackFideId "3526151"]
[WhiteElo "2158"]
[BlackElo "2310"]
[Result "0-1"]
[Round "04"]
[TimeControl "180+2"]
[Date "2023.03.21"]
[WhiteClock "0:00:03"]
[BlackClock "0:00:11"]

1. d4 {[%clk 0:03:00]}  Nf6 {[%clk 0:02:59]} 2. Bf4 {[%clk 0:03:01]}  d6 {[%clk 0:02:59]} 3. f3 {[%clk 0:03:00]}  Nbd7 {[%clk 0:02:58]} 4. c3 {[%clk 0:02:57]}  c6 {[%clk 0:02:57]} 5. e4 {[%clk 0:02:56]}  e5 {[%clk 0:02:56]} 6. Be3 {[%clk 0:02:56]}  Qb6 {[%clk 0:02:54]} 7. Qd2 {[%clk 0:02:53]}  exd4 {[%clk 0:02:39]} 8. cxd4 {[%clk 0:02:51]}  Be7 {[%clk 0:02:36]} 9. Nc3 {[%clk 0:02:51]}  O-O {[%clk 0:02:35]} 10. Bc4 {[%clk 0:02:35]}  d5 {[%clk 0:02:24]} 11. exd5 {[%clk 0:02:31]}  Bb4 {[%clk 0:02:21]} 12. dxc6 {[%clk 0:02:24]}  Qxc6 {[%clk 0:02:17]} 13. Bb3 {[%clk 0:02:22]}  Re8 {[%clk 0:02:14]} 14. Nge2 {[%clk 0:02:21]}  Nb6 {[%clk 0:02:08]} 15. O-O {[%clk 0:02:03]}  Nc4 {[%clk 0:02:06]} 16. Bxc4 {[%clk 0:02:00]}  Qxc4 {[%clk 0:02:07]} 17. Rfe1 {[%clk 0:01:58]}  Bf5 {[%clk 0:01:59]} 18. Rac1 {[%clk 0:01:49]}  Rad8 {[%clk 0:01:58]} 19. a3 {[%clk 0:01:43]}  Ba5 {[%clk 0:01:36]} 20. b4 {[%clk 0:01:43]}  Bb6 {[%clk 0:01:36]} 21. Na4 {[%clk 0:01:41]}  Qd3 {[%clk 0:01:35]} 22. Nxb6 {[%clk 0:01:36]}  axb6 {[%clk 0:01:23]} 23. Qxd3 {[%clk 0:01:34]}  Bxd3 {[%clk 0:01:24]} 24. Nf4 {[%clk 0:01:32]}  Bb5 {[%clk 0:01:19]} 25. Kf2 {[%clk 0:01:32]}  g5 {[%clk 0:01:17]} 26. Ne2 {[%clk 0:01:25]}  h6 {[%clk 0:01:17]} 27. Nc3 {[%clk 0:01:25]}  Bc6 {[%clk 0:01:15]} 28. b5 {[%clk 0:01:20]}  Bd5 {[%clk 0:01:13]} 29. Na4 {[%clk 0:01:15]}  Re6 {[%clk 0:01:09]} 30. Rc3 {[%clk 0:00:50]}  Ra8 {[%clk 0:01:03]} 31. Nb2 {[%clk 0:00:50]}  Rae8 {[%clk 0:01:00]} 32. Bd2 {[%clk 0:00:48]}  Rd8 {[%clk 0:00:55]} 33. Rxe6 {[%clk 0:00:48]}  Bxe6 {[%clk 0:00:56]} 34. Be3 {[%clk 0:00:43]}  Nd5 {[%clk 0:00:55]} 35. Rc2 {[%clk 0:00:39]}  Ra8 {[%clk 0:00:43]} 36. a4 {[%clk 0:00:34]}  Ne7 {[%clk 0:00:43]} 37. Rc7 {[%clk 0:00:32]}  Nf5 {[%clk 0:00:41]} 38. Rxb7 {[%clk 0:00:28]}  Rc8 {[%clk 0:00:41]} 39. Bd2 {[%clk 0:00:15]}  Rc2 {[%clk 0:00:39]} 40. Ke2 {[%clk 0:00:06]}  Rxb2 {[%clk 0:00:36]} 41. Rxb6 {[%clk 0:00:05]}  Bc4+ {[%clk 0:00:35]} 42. Kd1 {[%clk 0:00:04]}  Nxd4 {[%clk 0:00:30]} 43. Bc3 {[%clk 0:00:04]}  Rb1+ {[%clk 0:00:28]} 44. Kd2 {[%clk 0:00:05]}  Nb3+ {[%clk 0:00:27]} 45. Kc2 {[%clk 0:00:04]}  Rc1+ {[%clk 0:00:17]} 46. Kb2 {[%clk 0:00:03]}  Rg1 {[%clk 0:00:17]} 47. Rxh6 {[%clk 0:00:04]}  Rxg2+ {[%clk 0:00:16]} 48. Ka3 {[%clk 0:00:04]}  f6 {[%clk 0:00:14]} 49. Bxf6 {[%clk 0:00:03]}  Kf7 {[%clk 0:00:14]} 50. Bc3 {[%clk 0:00:03]}  Be6 {[%clk 0:00:11]} 0-1


[Site "https://www.chess.com"]

[Event "Titled Tuesday Blitz March 21 Early 2023"]
[White "Spitzl, Vinzent"]
[Black "Turayev, Shahruh"]
[WhiteFideId "12901253"]
[BlackFideId "14003856"]
[WhiteElo "2225"]
[BlackElo "2171"]
[Result "0-1"]
[Round "04"]
[TimeControl "180+2"]
[Date "2023.03.21"]
[WhiteClock "0:00:04"]
[BlackClock "0:00:08"]

1. e4 {[%clk 0:03:00]}  d5 {[%clk 0:02:59]} 2. exd5 {[%clk 0:03:00]}  Qxd5 {[%clk 0:03:00]} 3. Nf3 {[%clk 0:02:59]}  Nf6 {[%clk 0:03:00]} 4. d4 {[%clk 0:02:58]}  Bg4 {[%clk 0:02:59]} 5. Be2 {[%clk 0:02:57]}  Nc6 {[%clk 0:02:59]} 6. c4 {[%clk 0:02:55]}  Qh5 {[%clk 0:02:59]} 7. Be3 {[%clk 0:02:53]}  O-O-O {[%clk 0:02:59]} 8. Nbd2 {[%clk 0:02:54]}  e6 {[%clk 0:02:53]} 9. O-O {[%clk 0:02:49]}  Bd6 {[%clk 0:02:53]} 10. Re1 {[%clk 0:02:37]}  e5 {[%clk 0:02:30]} 11. d5 {[%clk 0:02:34]}  Nd4 {[%clk 0:02:25]} 12. Bxd4 {[%clk 0:02:25]}  exd4 {[%clk 0:02:26]} 13. Nf1 {[%clk 0:02:25]}  Rhe8 {[%clk 0:02:10]} 14. Ng3 {[%clk 0:02:21]}  Qg6 {[%clk 0:02:06]} 15. Nxd4 {[%clk 0:02:09]}  Bxe2 {[%clk 0:02:04]} 16. Rxe2 {[%clk 0:02:08]}  h5 {[%clk 0:02:04]} 17. Rxe8 {[%clk 0:02:04]}  Rxe8 {[%clk 0:02:04]} 18. Qf3 {[%clk 0:02:04]}  Bc5 {[%clk 0:01:50]} 19. Nb3 {[%clk 0:01:33]}  Bf8 {[%clk 0:01:08]} 20. Kf1 {[%clk 0:01:20]}  Qc2 {[%clk 0:01:00]} 21. Qf5+ {[%clk 0:01:20]}  Qxf5 {[%clk 0:01:00]} 22. Nxf5 {[%clk 0:01:20]}  g6 {[%clk 0:00:59]} 23. Ne3 {[%clk 0:01:16]}  Bh6 {[%clk 0:00:53]} 24. Re1 {[%clk 0:01:14]}  Bxe3 {[%clk 0:00:51]} 25. Rxe3 {[%clk 0:01:13]}  Rxe3 {[%clk 0:00:52]} 26. fxe3 {[%clk 0:01:14]}  Ng4 {[%clk 0:00:53]} 27. Ke2 {[%clk 0:01:09]}  Nxh2 {[%clk 0:00:52]} 28. Nd4 {[%clk 0:01:06]}  Kd7 {[%clk 0:00:48]} 29. c5 {[%clk 0:01:03]}  Ng4 {[%clk 0:00:48]} 30. e4 {[%clk 0:01:00]}  Ne5 {[%clk 0:00:47]} 31. Nf3 {[%clk 0:00:57]}  Ng4 {[%clk 0:00:45]} 32. Nd4 {[%clk 0:00:57]}  f6 {[%clk 0:00:38]} 33. b4 {[%clk 0:00:55]}  g5 {[%clk 0:00:38]} 34. b5 {[%clk 0:00:52]}  h4 {[%clk 0:00:37]} 35. c6+ {[%clk 0:00:44]}  Kc8 {[%clk 0:00:37]} 36. a4 {[%clk 0:00:30]}  Ne5 {[%clk 0:00:34]} 37. Ne6 {[%clk 0:00:24]}  a6 {[%clk 0:00:25]} 38. bxa6 {[%clk 0:00:21]}  bxa6 {[%clk 0:00:25]} 39. Nc5 {[%clk 0:00:21]}  a5 {[%clk 0:00:15]} 40. Nb3 {[%clk 0:00:21]}  Nc4 {[%clk 0:00:16]} 41. Kd3 {[%clk 0:00:21]}  Nb2+ {[%clk 0:00:14]} 42. Ke3 {[%clk 0:00:21]}  Nxa4 {[%clk 0:00:15]} 43. Nxa5 {[%clk 0:00:22]}  Nb6 {[%clk 0:00:15]} 44. Kf3 {[%clk 0:00:19]}  Kd8 {[%clk 0:00:14]} 45. Kg4 {[%clk 0:00:15]}  Ke7 {[%clk 0:00:14]} 46. Kf5 {[%clk 0:00:15]}  Kd6 {[%clk 0:00:11]} 47. Nb7+ {[%clk 0:00:11]}  Ke7 {[%clk 0:00:11]} 48. Nc5 {[%clk 0:00:09]}  Nc4 {[%clk 0:00:08]} 49. Kg4 {[%clk 0:00:08]}  Nd6 {[%clk 0:00:08]} 50. e5 {[%clk 0:00:06]}  fxe5 {[%clk 0:00:06]} 51. Kxg5 {[%clk 0:00:07]}  Ne4+ {[%clk 0:00:06]} 52. Kxh4 {[%clk 0:00:06]}  Nxc5 {[%clk 0:00:07]} 53. Kg5 {[%clk 0:00:04]}  Kd6 {[%clk 0:00:07]} 54. Kf6 {[%clk 0:00:03]}  Kxd5 {[%clk 0:00:08]} 55. g4 {[%clk 0:00:04]}  e4 {[%clk 0:00:07]} 56. g5 {[%clk 0:00:04]}  e3 {[%clk 0:00:08]} 57. g6 {[%clk 0:00:04]}  Ne6 {[%clk 0:00:08]} 0-1


[Site "https://www.chess.com"]